bitfinex-derivatives/quotes_BTCF0:USTF0_20260207
["timestamp","ask_amount","ask_price","bid_price","bid_amount"]
[1770437854434,0.014013,71408.0,71389.0,0.04935029]
[1770437854633,0.04693922,71442.0,71403.0,0.04935029]
[1770437854831,0.41346893,71460.0,71416.0,0.04935029]
[1770437854832,0.04693922,71460.0,71416.0,0.04935029]
[1770437855031,0.014006,71447.0,71421.0,0.04935029]
[1770437855237,0.014006,71444.0,71421.0,0.04935029]
[1770437855941,0.014007,71441.0,71421.0,0.04935029]
[1770437856741,0.014007,71441.0,71415.0,0.014012]
[1770437856945,0.014008,71432.0,71412.0,0.16403462]
[1770437857135,0.0568366,71431.0,71402.0,0.05874947]
[1770437857338,0.0568366,71431.0,71382.0,0.34995281]
[1770437857339,0.0568366,71427.0,71398.0,0.16403462]
[1770437857535,0.014011,71420.0,71383.0,0.16403462]
[1770437857839,0.014007,71441.0,71378.0,0.16403462]
[1770437857840,0.0568366,71412.0,71378.0,0.16403462]
[1770437858044,0.0568366,71408.0,71374.0,0.16403462]
[1770437858242,0.014015,71396.0,71374.0,0.16403462]
[1770437858545,0.014015,71397.0,71371.0,0.05874947]
[1770437858749,0.014016,71393.0,71371.0,0.05874947]
[1770437858952,0.0568366,71411.0,71373.0,0.01402]
[1770437859144,0.014015,71399.0,71373.0,0.07276947]
[1770437859451,0.014015,71401.0,71373.0,0.07276947]
[1770437859944,0.0568366,71411.0,71373.0,0.05874947]
[1770437859945,0.014015,71398.0,71373.0,0.05874947]
[1770437860348,0.0568366,71411.0,71374.0,0.07276947]
[1770437860945,0.014015,71401.0,71374.0,0.07276947]
[1770437861145,0.0568366,71411.0,71366.0,0.014021]
[1770437861146,0.0568366,71398.0,71366.0,0.014021]
[1770437861347,0.014017,71390.0,71364.0,0.05874947]
[1770437861549,0.014018,71382.0,71356.0,0.005]
[1770437861741,0.014017,71386.0,71357.0,0.014023]
[1770437861942,0.014016,71394.0,71369.0,0.05874947]
[1770437862343,0.5,71411.0,71350.0,0.13750585]
[1770437862344,0.0568366,71399.0,71358.0,0.05874947]
[1770437862548,0.014018,71386.0,71358.0,0.05874947]
[1770437862744,0.0708536,71390.0,71358.0,0.05874947]
[1770437862949,0.0708536,71390.0,71362.0,0.07277147]
[1770437863153,0.0568366,71387.0,71352.0,0.05874947]
[1770437863344,0.014019,71377.0,71352.0,0.05874947]
[1770437863848,0.0568366,71378.0,71352.0,0.05874947]
[1770437863849,0.01402,71373.0,71352.0,0.05874947]
[1770437864041,0.514015,71399.0,71335.0,0.9068]
[1770437864042,0.014022,71364.0,71335.0,0.9068]
[1770437864247,0.014022,71364.0,71332.0,0.05874947]
[1770437864248,0.014022,71361.0,71332.0,0.07277747]
[1770437864646,0.014023,71359.0,71332.0,0.05874947]
[1770437864845,0.0568366,71367.0,71322.0,0.97957947]
[1770437865041,0.0568366,71351.0,71322.0,0.05874947]
[1770437865248,0.0568366,71367.0,71322.0,0.05874947]
[1770437865448,0.0708576,71367.0,71337.0,0.05874947]
[1770437865649,0.01402,71372.0,71339.0,0.05874947]
[1770437865854,0.5,71359.0,71339.0,0.05874947]
[1770437866257,0.0708556,71381.0,71348.0,0.00660444]
[1770437866553,0.0568366,71373.0,71338.0,0.00660444]
[1770437866753,0.014021,71368.0,71338.0,0.00660444]
[1770437867050,0.014021,71368.0,71321.0,0.16403462]
[1770437867051,0.0568366,71389.0,71340.0,0.00636488]
[1770437867254,0.0568366,71389.0,71356.0,0.01077392]
[1770437867255,0.014017,71386.0,71356.0,0.01077392]
[1770437867556,0.014018,71383.0,71356.0,0.01077392]
[1770437868456,0.514018,71383.0,71356.0,0.01077392]
[1770437869253,0.01402,71372.0,71345.0,0.00856941]
[1770437869454,0.0568366,71376.0,71345.0,0.00856941]
[1770437869656,0.5,71383.0,71370.0,0.00856941]
[1770437869852,0.5,71383.0,71370.0,0.00872376]
[1770437870058,0.014016,71393.0,71359.0,0.014023]
[1770437870253,0.05827453,71396.0,71370.0,0.01402]
[1770437870461,0.05827453,71407.0,71358.0,0.16403462]
[1770437870662,0.014013,71410.0,71368.0,0.16403462]
[1770437870854,0.014013,71410.0,71370.0,0.16403462]
[1770437871155,0.014013,71408.0,71378.0,0.014019]
[1770437871362,0.014012,71413.0,71372.0,0.16403462]
[1770437871555,0.014012,71413.0,71377.0,0.014019]
[1770437871754,0.014012,71413.0,71381.0,0.014018]
[1770437872358,0.014013,71410.0,71381.0,0.014018]
[1770437872755,0.014014,71406.0,71377.0,0.014019]
[1770437873057,0.014014,71403.0,71377.0,0.00239641]
[1770437873258,0.014014,71403.0,71373.0,0.01402]
[1770437873259,0.014015,71400.0,71369.0,0.014021]
[1770437873954,0.014016,71393.0,71367.0,0.00320415]
[1770437874156,0.05724348,71394.0,71360.0,0.014022]
[1770437874358,0.05724348,71394.0,71362.0,0.014022]
[1770437874561,0.07125948,71394.0,71364.0,0.014022]
[1770437875157,0.014015,71398.0,71368.0,0.00328552]
[1770437875557,0.014015,71398.0,71370.0,0.00405288]
[1770437876459,0.014016,71394.0,71370.0,0.00405288]
[1770437876857,0.014017,71391.0,71363.0,0.014022]
[1770437877056,0.014017,71388.0,71359.0,0.00477943]
[1770437877259,0.014016,71395.0,71365.0,0.00513901]
[1770437877753,0.05761003,71392.0,71358.0,0.16403462]
[1770437877954,0.5,71398.0,71349.0,0.16403462]
[1770437877955,0.01402,71372.0,71349.0,0.16403462]
[1770437878160,0.07163985,71372.0,71344.0,0.014025]
[1770437878364,0.05761985,71370.0,71342.0,0.00510952]
[1770437879364,0.014022,71364.0,71336.0,0.014027]
[1770437879554,0.014021,71367.0,71332.0,0.1847798]
[1770437879763,0.014019,71380.0,71335.0,0.014027]
[1770437879764,0.07159296,71363.0,71335.0,0.014027]
[1770437879957,0.05757096,71363.0,71332.0,0.00671718]
[1770437880261,0.81988656,71357.0,71340.0,0.014026]
[1770437880567,0.05758037,71383.0,71345.0,0.00740411]
[1770437880760,0.05758037,71383.0,71349.0,0.00740411]
[1770437880761,0.014019,71376.0,71349.0,0.00740411]
[1770437881156,0.014019,71376.0,71336.0,0.16403462]
[1770437881157,0.05739407,71372.0,71336.0,0.17270268]
[1770437881361,0.014014,71405.0,71324.0,0.16403462]
[1770437881362,0.05739407,71357.0,71324.0,0.16403462]
[1770437881555,0.05739407,71357.0,71326.0,0.014029]
[1770437881862,0.0714299,71339.0,71309.0,0.17806662]
[1770437882169,0.0714299,71339.0,71309.0,0.014032]
[1770437883067,0.06073556,71351.0,71299.0,0.16403462]
[1770437883267,0.06073556,71351.0,71308.0,0.014033]
[1770437883474,0.06073556,71361.0,71326.0,0.014029]
[1770437884570,0.014023,71356.0,71328.0,0.014029]
[1770437884767,0.014023,71360.0,71330.0,0.014028]
[1770437884965,0.014023,71360.0,71334.0,0.00142149]
[1770437885172,0.5,71361.0,71346.0,0.00142149]
[1770437885368,0.13780742,71430.0,71331.0,0.014028]
[1770437885369,0.05749491,71397.0,71359.0,0.003]
[1770437885666,0.014013,71407.0,71377.0,0.014019]
[1770437885873,0.06019072,71409.0,71384.0,0.014018]
[1770437886172,0.014012,71412.0,71384.0,0.014018]
[1770437886469,0.014012,71412.0,71382.0,0.014018]
[1770437886765,0.06022341,71410.0,71381.0,0.00968433]
[1770437886973,0.07423641,71410.0,71381.0,0.00968433]
[1770437887172,0.07423641,71410.0,71382.0,0.014018]
[1770437887370,0.56022341,71410.0,71382.0,0.014018]
[1770437887560,0.57423641,71410.0,71381.0,0.00968433]
[1770437888367,0.0635297,71407.0,71372.0,0.01402]
[1770437888566,0.0635297,71407.0,71369.0,0.01373037]
[1770437888567,0.0635297,71408.0,71367.0,0.01373037]
[1770437888871,0.0635297,71408.0,71379.0,0.014019]
[1770437889868,0.0645297,71408.0,71379.0,0.014019]
[1770437890062,0.014013,71407.0,71379.0,0.014019]
[1770437890272,0.014016,71392.0,71362.0,0.014022]
[1770437890472,0.014016,71394.0,71366.0,0.014021]
[1770437890671,0.014017,71390.0,71358.0,0.01358658]
[1770437890972,0.0635297,71390.0,71363.0,0.014022]
[1770437891173,0.014015,71399.0,71370.0,0.01402]
[1770437891668,0.014015,71399.0,71366.0,0.014021]
[1770437892676,0.014015,71399.0,71369.0,0.014021]
[1770437892873,0.014016,71395.0,71364.0,0.02916925]
[1770437893179,0.014015,71399.0,71367.0,0.03310086]
[1770437893380,0.0635297,71402.0,71368.0,0.01907986]
[1770437893677,0.0635297,71402.0,71359.0,0.16403462]
[1770437893678,0.014013,71407.0,71374.0,0.01907986]
[1770437893873,0.014013,71410.0,71374.0,0.01907986]
[1770437894271,0.014013,71410.0,71376.0,0.01966341]
[1770437894773,0.014013,71410.0,71377.0,0.014019]
[1770437895076,0.014013,71410.0,71379.0,0.014019]
[1770437895478,0.81988656,71399.0,71379.0,0.014019]
[1770437899773,0.81988656,71399.0,71378.0,0.01819477]
[1770437900280,0.014014,71404.0,71378.0,0.01819477]
[1770437900476,0.0635297,71404.0,71372.0,0.16403462]
[1770437900667,0.0635297,71389.0,71362.0,0.16403462]
[1770437900872,0.014018,71385.0,71360.0,0.014022]
[1770437901168,0.014018,71385.0,71358.0,0.16403462]
[1770437901169,0.0635297,71389.0,71365.0,0.014021]
[1770437901572,0.014017,71388.0,71362.0,0.0217416]
[1770437902472,0.014016,71394.0,71364.0,0.02281218]
[1770437902679,0.014015,71398.0,71372.0,0.01402]
[1770437903076,0.084076,71412.0,71368.0,0.10960236]
[1770437903276,0.014015,71398.0,71369.0,0.04088085]
[1770437903976,0.014016,71395.0,71369.0,0.04088085]
[1770437904170,0.014016,71395.0,71365.0,0.16403462]
[1770437904171,0.0635297,71414.0,71386.0,0.02736597]
[1770437904370,0.0635297,71424.0,71390.0,0.02736597]
[1770437904575,0.0635297,71446.0,71420.0,0.014011]
[1770437905082,0.0775357,71445.0,71414.0,0.10960236]
[1770437905282,0.0635297,71445.0,71414.0,0.014012]
[1770437905484,0.0635297,71445.0,71418.0,0.014011]
[1770437905678,0.014004,71455.0,71421.0,0.04177889]
[1770437905983,0.0635297,71457.0,71422.0,0.0277478]
[1770437905984,0.001,71446.0,71422.0,0.0277478]
[1770437906883,0.001,71446.0,71423.0,0.01401]
[1770437907080,0.001,71446.0,71423.0,0.04014563]
[1770437907476,0.001,71446.0,71423.0,0.02613563]
[1770437907884,0.014004,71453.0,71423.0,0.02613563]
[1770437908082,0.0775337,71453.0,71423.0,0.02613563]
[1770437908282,0.0635297,71449.0,71416.0,0.10960236]
[1770437908583,0.0635297,71444.0,71413.0,0.02711524]
[1770437909481,0.0775357,71443.0,71413.0,0.02711524]
[1770437909778,0.0635297,71443.0,71413.0,0.04112724]
[1770437909977,0.0635297,71443.0,71416.0,0.014011]
[1770437910379,0.81988656,71434.0,71414.0,0.03296887]
[1770437910984,0.81988656,71434.0,71415.0,0.014012]
[1770437911184,0.0635297,71443.0,71415.0,0.032026]
[1770437911485,0.0635297,71443.0,71414.0,0.03250053]
[1770437911784,0.0635297,71443.0,71415.0,0.04651253]
[1770437912285,0.0635297,71443.0,71419.0,0.014011]
[1770437912485,0.014005,71451.0,71419.0,0.014011]
[1770437912887,0.0775347,71451.0,71419.0,0.014011]
[1770437913185,0.014005,71447.0,71419.0,0.014011]
[1770437914581,0.0775347,71451.0,71422.0,0.01401]
[1770437914785,0.0775347,71451.0,71424.0,0.04816328]
[1770437914786,0.0635297,71451.0,71424.0,0.04816328]
[1770437914981,0.014004,71455.0,71425.0,0.03410338]
[1770437915187,0.014005,71450.0,71425.0,0.03410338]
[1770437915388,0.0635297,71457.0,71416.0,0.04856031]
[1770437915685,0.0775357,71442.0,71416.0,0.03454931]
[1770437915884,0.08178299,71439.0,71409.0,0.014013]
[1770437916279,0.06777599,71439.0,71408.0,0.907]
[1770437916486,0.06777599,71439.0,71416.0,0.014011]
[1770437916682,0.06777599,71439.0,71412.0,0.014012]
[1770437916884,0.014007,71442.0,71415.0,0.0394658]
[1770437917079,0.06777599,71449.0,71415.0,0.0394658]
[1770437918393,0.014008,71434.0,71408.0,0.907]
[1770437918592,0.014008,71434.0,71405.0,0.04029688]
[1770437918593,0.014009,71431.0,71405.0,0.04029688]
[1770437918797,0.08178499,71431.0,71405.0,0.04029688]
[1770437918986,0.08178499,71431.0,71406.0,0.014013]
[1770437918987,0.06777599,71431.0,71406.0,0.014013]
[1770437919186,0.08178499,71431.0,71405.0,0.04029688]
[1770437919690,0.06777599,71427.0,71399.0,0.10960236]
[1770437919895,0.014011,71417.0,71395.0,0.90652]
[1770437920084,0.06777599,71424.0,71386.0,0.10960236]
[1770437920289,0.014012,71412.0,71385.0,0.014018]
[1770437920681,0.014011,71417.0,71389.0,0.014017]
[1770437920888,0.06777599,71422.0,71395.0,0.03898448]
[1770437921087,0.06777599,71422.0,71397.0,0.014015]
[1770437921291,0.06777599,71422.0,71399.0,0.10960236]
[1770437922194,0.06777599,71422.0,71400.0,0.32002459]
[1770437922389,0.06777599,71422.0,71400.0,0.10960236]
[1770437922588,0.06777599,71422.0,71401.0,0.32001127]
[1770437922791,0.06777599,71443.0,71407.0,0.03976338]
[1770437922993,0.014008,71434.0,71411.0,0.10932413]
[1770437923289,0.014008,71434.0,71407.0,0.03976338]
[1770437923290,0.014008,71434.0,71412.0,0.31971445]
[1770437923496,0.06777599,71434.0,71411.0,0.10932413]
[1770437923892,0.06777599,71434.0,71412.0,0.31971471]
[1770437924091,0.06777599,71434.0,71412.0,0.10932413]
[1770437924494,0.014006,71443.0,71413.0,0.33372551]
[1770437924689,0.014006,71443.0,71415.0,0.014012]
[1770437924995,0.014006,71443.0,71418.0,0.10932413]
[1770437925296,0.014006,71443.0,71419.0,0.31970023]
[1770437925496,0.81988656,71427.0,71419.0,0.10932413]
[1770437926690,0.81988656,71427.0,71417.0,0.10932413]
[1770437926887,0.81988656,71427.0,71419.0,0.001]
[1770437927493,0.06777599,71445.0,71422.0,0.10932413]
[1770437927699,0.06777599,71445.0,71423.0,0.31968148]
[1770437927895,0.06777599,71445.0,71423.0,0.10932413]
[1770437928599,0.06777599,71445.0,71424.0,0.31967889]
[1770437928895,0.06777599,71445.0,71424.0,0.10932413]
[1770437929100,0.014007,71441.0,71421.0,0.10932413]
[1770437929398,0.014007,71441.0,71422.0,0.31969314]
[1770437929594,0.014007,71441.0,71424.0,0.10932413]
[1770437929792,0.014005,71448.0,71425.0,0.33660783]
[1770437929991,0.014005,71448.0,71426.0,0.01692039]
[1770437930302,0.014004,71456.0,71429.0,0.01724278]
[1770437930505,0.014004,71456.0,71432.0,0.10932413]
[1770437931002,0.08227405,71457.0,71434.0,0.10932413]
[1770437931303,0.08227405,71457.0,71429.0,0.01724278]
[1770437931304,0.08227405,71457.0,71436.0,0.10932413]
[1770437931505,0.014004,71454.0,71435.0,0.10932413]
[1770437932102,0.014004,71454.0,71437.0,0.10932413]
[1770437932403,0.06827005,71457.0,71437.0,0.10932413]
[1770437932608,0.014004,71456.0,71437.0,0.10932413]
[1770437933102,0.014004,71456.0,71439.0,0.10932413]
[1770437933304,0.06824846,71466.0,71440.0,0.31965837]
[1770437933495,0.014003,71459.0,71442.0,0.10932413]
[1770437933899,0.014004,71456.0,71442.0,0.10932413]
[1770437934203,0.06824846,71466.0,71442.0,0.10932413]
[1770437934397,0.014003,71459.0,71442.0,0.10932413]
[1770437934598,0.014002,71463.0,71445.0,0.10932413]
[1770437935201,0.014004,71455.0,71445.0,0.10932413]
[1770437935403,0.014004,71455.0,71440.0,0.16403462]
[1770437935594,0.06777599,71454.0,71438.0,0.16403462]
[1770437935794,0.06777599,71452.0,71432.0,0.20652581]
[1770437936005,0.06777599,71441.0,71426.0,0.20652581]
[1770437936192,0.06777599,71441.0,71422.0,0.20652581]
[1770437936398,0.014008,71436.0,71414.0,0.20652581]
[1770437936605,0.08178399,71432.0,71413.0,0.20652581]
[1770437936811,0.08178399,71432.0,71410.0,0.20652581]
[1770437936998,0.06777599,71432.0,71411.0,0.20652581]
[1770437937201,0.01401,71424.0,71406.0,0.20652581]
[1770437937394,0.01401,71424.0,71404.0,0.20652581]
[1770437937598,0.08178599,71424.0,71403.0,0.20652581]
[1770437937999,0.014011,71417.0,71403.0,0.20652581]
[1770437938205,0.014011,71417.0,71399.0,0.20652581]
[1770437938406,0.014011,71417.0,71398.0,0.20652581]
[1770437939094,0.014011,71417.0,71397.0,0.20652581]
[1770437939297,0.014011,71417.0,71396.0,0.20652581]
[1770437939698,0.014011,71421.0,71395.0,0.063783]
[1770437940906,0.014011,71421.0,71396.0,0.20652581]
[1770437941104,0.014015,71399.0,71390.0,0.20652581]
[1770437941399,0.014015,71399.0,71374.0,0.063783]
[1770437941400,0.014015,71397.0,71374.0,0.063783]
[1770437941600,0.014011,71418.0,71365.0,0.063783]
[1770437941601,0.014017,71387.0,71365.0,0.063783]
[1770437941805,0.014019,71380.0,71355.0,0.33797926]
[1770437942105,0.06777599,71392.0,71328.0,0.5599245]
[1770437942106,0.014017,71390.0,71356.0,0.077806]
[1770437942501,0.08179299,71390.0,71356.0,0.077806]
[1770437943405,0.014017,71387.0,71356.0,0.078806]
[1770437943701,0.06777599,71390.0,71360.0,0.063783]
[1770437944004,0.014016,71395.0,71364.0,0.063783]
[1770437944196,0.014016,71391.0,71364.0,0.063783]
[1770437945610,0.014016,71395.0,71366.0,0.07662501]
[1770437945909,0.014015,71399.0,71370.0,0.07662501]
[1770437946109,0.014013,71408.0,71377.0,0.07662501]
[1770437946307,0.07835196,71410.0,71382.0,0.014018]
[1770437946508,0.07835196,71405.0,71359.0,0.07662501]
[1770437946710,0.07835196,71385.0,71359.0,0.07662501]
[1770437947505,0.014016,71395.0,71365.0,0.07662501]
[1770437947808,0.014017,71387.0,71365.0,0.07662501]
[1770437949103,0.014017,71387.0,71356.0,0.0980715]
[1770437949302,0.014017,71387.0,71357.0,0.29458412]
[1770437949509,0.014017,71387.0,71358.0,0.21053562]
[1770437949705,0.014016,71394.0,71363.0,0.0840485]
[1770437950198,0.014015,71398.0,71366.0,0.014021]
[1770437950402,0.014017,71391.0,71365.0,0.0840485]
[1770437950706,0.08727112,71390.0,71354.0,0.0840485]
[1770437950907,0.014017,71386.0,71356.0,0.0840485]
[1770437951908,0.014018,71383.0,71356.0,0.0840485]
[1770437952410,0.014018,71383.0,71356.0,0.0980715]
[1770437953308,0.014018,71383.0,71357.0,0.0840485]
[1770437953714,0.014017,71387.0,71359.0,0.0840485]
[1770437954910,0.014017,71391.0,71363.0,0.0840485]
[1770437955104,0.014017,71391.0,71365.0,0.0840485]
[1770437955306,0.014016,71395.0,71367.0,0.0840485]
[1770437955705,0.08727112,71400.0,71367.0,0.0840485]
[1770437955902,0.014017,71389.0,71367.0,0.0840485]
[1770437956214,0.08727112,71389.0,71357.0,0.0840485]
[1770437957909,0.014016,71394.0,71346.0,0.014025]
[1770437957910,0.01402,71373.0,71346.0,0.014025]
[1770437958214,0.01402,71373.0,71346.0,0.0980735]
[1770437958612,0.10129012,71377.0,71349.0,0.0980735]
[1770437958917,0.01402,71374.0,71349.0,0.0840485]
[1770437959214,0.01402,71371.0,71349.0,0.0840485]
[1770437959412,0.08727112,71377.0,71349.0,0.0840485]
[1770437959615,0.08727112,71375.0,71349.0,0.0840485]
[1770437959811,0.014021,71367.0,71339.0,0.0840485]
[1770437960211,0.014021,71367.0,71341.0,0.0840485]
[1770437961214,0.014021,71367.0,71330.0,0.233]
[1770437961215,0.10129112,71375.0,71346.0,0.0840485]
[1770437961718,0.01402,71375.0,71346.0,0.0840485]
[1770437962116,0.01402,71375.0,71348.0,0.0840485]
[1770437962316,0.01402,71375.0,71350.0,0.0840485]
[1770437962512,0.014019,71379.0,71354.0,0.0840485]
[1770437962816,0.014018,71383.0,71355.0,0.014023]
[1770437963112,0.014019,71380.0,71355.0,0.0980715]
[1770437963313,0.08727112,71384.0,71358.0,0.0980715]
[1770437963614,0.08727112,71384.0,71358.0,0.0840485]
[1770437963809,0.10128912,71384.0,71358.0,0.0840485]
[1770437964017,0.10128912,71384.0,71359.0,0.0840485]
[1770437964407,0.014018,71384.0,71359.0,0.0840485]
[1770437964810,0.014018,71381.0,71359.0,0.0840485]
[1770437967314,0.014018,71383.0,71359.0,0.0840485]
[1770437967513,0.08727112,71389.0,71359.0,0.0840485]
[1770437967514,0.014019,71381.0,71359.0,0.0840485]
[1770437968218,0.08727112,71389.0,71360.0,0.21054454]
[1770437968417,0.08727112,71389.0,71359.0,0.0840485]
[1770437968616,0.08727112,71389.0,71360.0,0.21054444]
[1770437968913,0.08727112,71389.0,71359.0,0.0840485]
[1770437969116,0.08727112,71389.0,71360.0,0.21054444]
[1770437969311,0.08727112,71389.0,71361.0,0.21054444]
[1770437969521,0.014018,71382.0,71359.0,0.0840485]
[1770437969719,0.014019,71380.0,71360.0,0.21054444]
[1770437970018,0.014019,71380.0,71361.0,0.21054444]
[1770437970207,0.014019,71380.0,71359.0,0.0840485]
[1770437970411,0.014019,71380.0,71360.0,0.21054447]
[1770437970618,0.014019,71380.0,71361.0,0.21054447]
[1770437970918,0.014019,71380.0,71359.0,0.0840485]
[1770437971118,0.014019,71380.0,71360.0,0.21054444]
[1770437971418,0.01402,71374.0,71361.0,0.21054444]
[1770437971713,0.08727112,71379.0,71350.0,0.35824476]
[1770437971714,0.01402,71371.0,71354.0,0.1647377]
[1770437971909,0.08727112,71376.0,71351.0,0.1647377]
[1770437972116,0.014021,71369.0,71352.0,0.21056643]
[1770437972418,0.014021,71369.0,71353.0,0.21056643]
[1770437972613,0.014021,71369.0,71350.0,0.2487862]
[1770437972917,0.014022,71364.0,71347.0,0.1647377]
[1770437973117,0.014022,71364.0,71348.0,0.21057997]
[1770437973322,0.014022,71364.0,71349.0,0.21057997]
[1770437973620,0.014022,71364.0,71345.0,0.1647377]
[1770437973819,0.014022,71364.0,71346.0,0.21058445]
[1770437974021,0.014021,71367.0,71347.0,0.21058445]
[1770437974216,0.014021,71367.0,71348.0,0.21058445]
[1770437974416,0.014021,71367.0,71345.0,0.1647377]
[1770437974417,0.014021,71367.0,71346.0,0.0840485]
[1770437974618,0.014021,71367.0,71347.0,0.29463289]
[1770437974919,0.014021,71367.0,71348.0,0.21058439]
[1770437975122,0.014021,71367.0,71347.0,0.0840485]
[1770437975515,0.014022,71365.0,71347.0,0.0840485]
[1770437976023,0.08727112,71369.0,71349.0,0.11370384]
[1770437976024,0.014021,71369.0,71349.0,0.11370384]
[1770437976222,0.11247259,71379.0,71349.0,0.11370384]
[1770437976223,0.014021,71367.0,71349.0,0.11370384]
[1770437977423,0.11247259,71387.0,71351.0,0.11370384]
[1770437977725,0.01402,71374.0,71356.0,0.11370384]
[1770437977918,0.01402,71374.0,71351.0,0.12772784]
[1770437978115,0.01402,71374.0,71353.0,0.014024]
[1770437978315,0.014019,71377.0,71356.0,0.11370384]
[1770437978517,0.014021,71370.0,71356.0,0.11370384]
[1770437978715,0.014021,71370.0,71350.0,0.1647377]
[1770437978920,0.014021,71367.0,71351.0,0.2105712]
[1770437979124,0.014021,71367.0,71347.0,0.27844154]
[1770437979422,0.014021,71367.0,71348.0,0.21057947]
[1770437979625,0.014021,71367.0,71349.0,0.21057947]
[1770437979823,0.014021,71367.0,71350.0,0.21057947]
[1770437980024,0.014021,71367.0,71351.0,0.21057947]
[1770437980224,0.014021,71367.0,71348.0,0.27844154]
[1770437980427,0.014021,71367.0,71349.0,0.32428331]
[1770437980726,0.014019,71379.0,71355.0,0.11370384]
[1770437980918,0.014019,71379.0,71351.0,0.3977377]
[1770437980919,0.014017,71387.0,71366.0,0.11370384]
[1770437981116,0.11247259,71404.0,71373.0,0.11370384]
[1770437981424,0.014017,71388.0,71365.0,0.1647377]
[1770437981624,0.014018,71385.0,71366.0,0.21052537]
[1770437981924,0.014018,71385.0,71367.0,0.21052537]
[1770437982128,0.014018,71385.0,71364.0,0.27844154]
[1770437982427,0.5,71404.0,71372.0,0.11370384]
[1770437982623,0.5,71404.0,71374.0,0.11370384]
[1770437983015,0.11247259,71419.0,71386.0,0.11370384]
[1770437983229,0.11247259,71446.0,71402.0,0.11370384]
[1770437983426,0.014008,71434.0,71409.0,0.014013]
[1770437983617,0.11247259,71441.0,71412.0,0.11370384]
[1770437983618,0.014007,71438.0,71412.0,0.11370384]
[1770437983822,0.014008,71435.0,71412.0,0.11370384]
[1770437984216,0.014008,71432.0,71412.0,0.11370384]
[1770437984421,0.11247259,71441.0,71402.0,0.11370384]
[1770437984624,0.11247259,71431.0,71402.0,0.11370384]
[1770437984828,0.11247259,71429.0,71402.0,0.11370384]
[1770437985319,0.014009,71427.0,71402.0,0.11370384]
[1770437985519,0.01401,71424.0,71402.0,0.11370384]
[1770437986027,0.014008,71437.0,71411.0,0.11370384]
[1770437986222,0.014008,71437.0,71410.0,0.014012]
[1770437986223,0.11247259,71453.0,71413.0,0.11370384]
[1770437986423,0.014006,71445.0,71415.0,0.11370384]
[1770437986631,0.014006,71445.0,71419.0,0.11370384]
[1770437987728,0.014007,71442.0,71419.0,0.11370384]
[1770437988119,0.014007,71442.0,71396.0,0.96171626]
[1770437988120,0.11247259,71444.0,71409.0,0.11370384]
[1770437988320,0.014007,71437.0,71409.0,0.11370384]
[1770437988717,0.014007,71441.0,71411.0,0.11370384]
[1770437988924,0.11247259,71457.0,71417.0,0.11370384]
[1770437989125,0.11247259,71457.0,71419.0,0.11370384]
[1770437989326,0.11247259,71457.0,71424.0,0.11370384]
[1770437989327,0.014004,71454.0,71424.0,0.11370384]
[1770437989526,0.014004,71454.0,71426.0,0.11370384]
[1770437989832,0.014005,71451.0,71426.0,0.11370384]
[1770437990425,0.014004,71456.0,71426.0,0.12771284]
[1770437991426,0.41346893,71503.0,71410.0,0.13761471]
[1770437991427,0.014002,71465.0,71434.0,0.11370384]
[1770437991737,0.069994,71484.0,71441.0,0.11370384]
[1770437991738,0.014001,71469.0,71441.0,0.11370384]
[1770437992121,0.013997,71489.0,71454.0,0.014004]
[1770437992326,0.11247259,71491.0,71457.0,0.11370384]
[1770437992525,0.014,71476.0,71447.0,0.11370384]
[1770437992922,0.014001,71468.0,71447.0,0.11370384]
[1770437993327,0.11247259,71482.0,71447.0,0.11370384]
[1770437993528,0.014,71473.0,71447.0,0.11370384]
[1770437993729,0.11247259,71482.0,71447.0,0.11370384]
[1770437994330,0.11247259,71482.0,71430.0,0.13761471]
[1770437994331,0.013999,71481.0,71452.0,0.11370384]
[1770437995323,0.11247259,71482.0,71452.0,0.11370384]
[1770437995527,0.014,71474.0,71452.0,0.11370384]
[1770437995926,0.014,71474.0,71440.0,0.11370384]
[1770437995927,0.12647259,71474.0,71440.0,0.11370384]
[1770437996132,0.12647259,71474.0,71441.0,0.12771084]
[1770437996439,0.014001,71470.0,71441.0,0.11370384]
[1770437996631,0.11247259,71471.0,71441.0,0.11370384]
[1770437996832,0.014001,71468.0,71441.0,0.11370384]
[1770437997033,0.11247259,71471.0,71441.0,0.11370384]
[1770437998042,0.014001,71470.0,71441.0,0.11370384]
[1770437998628,0.10947259,71492.0,71459.0,0.11370384]
[1770437998832,0.013997,71489.0,71461.0,0.11370384]
[1770437999138,0.013998,71486.0,71461.0,0.11370384]
[1770437999439,0.013997,71491.0,71461.0,0.11370384]
[1770438000338,0.013998,71488.0,71461.0,0.11370384]
[1770438000539,0.013997,71492.0,71461.0,0.11370384]
[1770438000834,0.013997,71492.0,71430.0,0.13761471]
[1770438000835,0.11247259,71481.0,71445.0,0.11370384]
[1770438001041,0.014,71475.0,71446.0,0.12770984]
[1770438001334,0.014001,71469.0,71446.0,0.11370384]
[1770438001536,0.11247259,71477.0,71446.0,0.11370384]
[1770438001537,0.014,71473.0,71446.0,0.11370384]
[1770438001736,0.014002,71467.0,71436.0,0.12771084]
[1770438002040,0.013998,71484.0,71437.0,0.014007]
[1770438002041,0.11247259,71468.0,71437.0,0.014007]
[1770438002235,0.11247259,71478.0,71440.0,0.11370384]
[1770438002437,0.014001,71472.0,71447.0,0.11370384]
[1770438002837,0.014001,71469.0,71447.0,0.11370384]
[1770438003140,0.014003,71462.0,71437.0,0.11370384]
[1770438003336,0.11247259,71462.0,71437.0,0.11370384]
[1770438003937,0.014004,71457.0,71430.0,0.014009]
[1770438004134,0.11247259,71462.0,71429.0,0.11370384]
[1770438004135,0.014004,71454.0,71429.0,0.11370384]
[1770438004334,0.014003,71458.0,71429.0,0.12771284]
[1770438004735,0.11247259,71462.0,71429.0,0.12771284]
[1770438004944,0.11247259,71462.0,71429.0,0.11370384]
[1770438005240,0.014004,71456.0,71429.0,0.11370384]
[1770438005435,0.014004,71453.0,71429.0,0.11370384]
[1770438005739,0.11247259,71458.0,71429.0,0.11370384]
[1770438005740,0.014006,71447.0,71429.0,0.11370384]
[1770438005933,0.014006,71447.0,71415.0,0.14136964]
[1770438006134,0.13539826,71454.0,71408.0,0.14136964]
[1770438006342,0.13539826,71449.0,71410.0,0.14136964]
[1770438006542,0.014007,71438.0,71412.0,0.14136964]
[1770438006748,0.014007,71438.0,71414.0,0.14136964]